Cogmind - Beta 14 @@@ ROGUE MODE // 2024.08.19 @ 19:31:40 Player: H3-RMN Result: Destroyed by Executioner with Helical Railgun Performance ------------- Evolutions (9) 4500 Regions Visited (16) 3200 Robots Destroyed (245) 1225 Value Destroyed (12792) 12792 Prototype IDs (58) 1160 Alien Tech Used (0) 0 Bonus (10436) 10436 TOTAL SCORE: 33313 Bonus ------- Triggered High Security 500 High Alert Combat Kills 6091 Follower Combat Kills 1444 Entered DSFs 500 Registered with UFD 300 Met Warlord at Base 500 MAIN.C Attacked Warlord 500 Warlord Defense Kills 508 Scanned by Researcher 500 Friendly Fire -407 Cogmind --------- Core Integrity 0/1600 Matter 186/300 Energy 100/100 System Corruption 65% Temperature Cool (0) Movement Core (50) Location -1/Access Parts ------- > --- POWER (3) -------- (None) > --- PROPULSION (6) --- (None) > --- UTILITY (12) ----- (None) > --- WEAPON (4) ------- (None) > --- INVENTORY (5) ---- Improved Matter Compressor (300) High-powered Tractor Beam Enhanced Gamma Rifle Overtuned Railgun Peak State ------------ > --- POWER ------------ Quantum Reactor Quantum Reactor Light Quantum Reactor > --- PROPULSION ------- Enhanced Biometal Leg Centrium Leg Centrium Leg High-density Centrium Leg Experimental Biometal Leg Experimental Biometal Leg > --- UTILITY ---------- Advanced Cooling System Advanced Cooling System Advanced Coolant Injector Large Storage Unit Experimental Optical Array Experimental Targeting Computer Experimental Transmission Jammer Medium Regenerative Plating SHELL Armor Experimental Field Recycling Unit > --- WEAPON ----------- Enhanced Nova Cannon Bore Cannon Compact Mass Driver Compact Mass Driver > --- INVENTORY -------- Centrium Leg Centrium Leg Advanced Heat Sink Improved Matter Compressor Precision Matter Filter Improved Reaction Control System High-powered Tractor Beam Gamma Rifle Phase Gun Vortex Rail Vortex Rail KE Penetrator [Rating: 213] Favorites ----------- Power Subdweller Power Source Engine Subdweller Power Source Power Core Neutrino Core Reactor Quantum Reactor Propulsion Overtuned Huge Scrapsphere Treads Light Treads Leg High-density Centrium Leg Wheel Overtuned Huge Scrapsphere Flight Unit Xenon Bombardment Thruster Utility Humpback Device Scrap Suit Storage Humpback Processor Core Analyzer Hackware Hacking Suite Protection SHELL Armor Weapon Powered Cannon Energy Gun Enhanced Quantum Rifle Energy Cannon Powered Cannon Ballistic Gun Light Assault Rifle Ballistic Cannon Compact Mass Driver Launcher Smartbomb Launcher Special Weapon CPS Tube Impact Weapon Thunder Hammer Slashing Weapon Segregator Piercing Weapon Plasma Lance Build | -11 -10 -10 -10 -7 -7 -5 -5 -5 -5 -4 -4 -3 -3 -2 -2 -1 ------- Run | Yrd Mat Min Sub Rec Scr Fac Upp Upp War Pro Fac Res Tes Res DSF Acc Slots Evolved 18 | . . . . . . 10 . . . . 2 2 . 2 . 2 Power 2 | . . . . . . 1 . . . . . . . 1 . . Propulsion 4 | . . . . . . 4 . . . . . . . . . . Utility 10 | . . . . . . 3 . . . . 2 2 . 1 . 2 Weapon 2 | . . . . . . 2 . . . . . . . . . . Parts Attached 349 | 7 . 5 12 2 15 28 4 12 18 . 15 . 86 1 20 124 Power 35 | 1 . 1 3 . 1 3 . 1 1 . . . 6 . 2 16 Engine 7 | 1 . . 3 . 1 1 . 1 . . . . . . . . Core 4 | . . 1 . . . 2 . . . . . . . . 1 . Reactor 24 | . . . . . . . . . 1 . . . 6 . 1 16 Propulsion 63 | 2 . 2 3 2 9 7 1 . . . . . 12 . 6 19 Treads 19 | . . 2 1 . 3 5 . . . . . . . . . 8 Leg 28 | . . . . . . . . . . . . . 11 . 6 11 Wheel 13 | 2 . . 2 2 4 2 1 . . . . . . . . . Hover . | . . . . . . . . . . . . . . . . . Flight 3 | . . . . . 2 . . . . . . . 1 . . . Utility 171 | 2 . . 2 . 5 10 2 8 7 . 9 . 59 1 10 56 Device 125 | 1 . . . . 2 3 1 5 6 . 6 . 46 1 8 46 Storage 11 | 1 . . 1 . 2 1 . . . . . . 5 . . 1 Processor 6 | . . . . . . 1 . . . . 1 . 2 . . 2 Hackware 2 | . . . . . . 1 . . . . 1 . . . . . Protection 27 | . . . 1 . 1 4 1 3 1 . 1 . 6 . 2 7 Artifact . | . . . . . . . . . . . . . . . . . Weapon 80 | 2 . 2 4 . . 8 1 3 10 . 6 . 9 . 2 33 Energy Gun 28 | 1 . . 1 . . 2 . . 1 . 4 . 3 . . 16 Energy Cannon 15 | . . . 2 . . 3 . 2 4 . . . 1 . . 3 Ballistic Gun 15 | 1 . 2 1 . . 2 . 1 . . 2 . . . 1 5 Ballistic Cannon 13 | . . . . . . 1 1 . 2 . . . 3 . 1 5 Launcher 2 | . . . . . . . . . . . . . . . . 2 Special Weapon 5 | . . . . . . . . . 2 . . . 1 . . 2 Impact Weapon 1 | . . . . . . . . . . . . . 1 . . . Slashing Weapon . | . . . . . . . . . . . . . . . . . Piercing Weapon 1 | . . . . . . . . . 1 . . . . . . . Special Melee Weapon . | . . . . . . . . . . . . . . . . . Unidentified Prototypes 32 | . . . . . . 3 . . 6 . 2 . 17 . . 4 Corrupted Parts 1 | . . . . . . . . . . . . . . . . 1 System Corruption 3 | . . . . . . . . . . . . . . . . 3 Parts Lost 100 | . . 4 1 . . 1 1 3 . . 29 . 11 . 2 48 Power 14 | . . 1 . . . . . 1 . . 2 . 4 . . 6 Propulsion 19 | . . 2 1 . . . . . . . 3 . 3 . 1 9 Utility 35 | . . . . . . . . . . . 14 . 2 . . 19 Weapon 31 | . . 1 . . . 1 1 2 . . 9 . 2 . 1 14 Highest Loss Streak 24 | . . 4 1 . . 1 1 3 . . 24 . 5 . 2 17 To Critical Strikes 3 | . . . . . . . . . . . 1 . . . 2 . Average Slot Usage (%) 74 | . 100 96 76 75 64 82 76 75 71 70 66 . 70 76 79 79 Engine 12 | . 14 . 22 25 19 8 5 4 1 . . . . . . . Core 1 | . . 13 . . . 2 5 5 1 . . . . . 1 . Reactor 2 | . . . . . . . . . 3 5 4 . 7 4 5 11 Treads 5 | . . 26 13 . . 14 . . . . . . . . . 4 Leg 3 | . . . . . . . . . . . . . 20 26 25 15 Wheel 11 | . 28 . 10 25 16 9 16 17 17 17 14 . . . . . Device 5 | . 14 14 . . 1 5 5 6 11 11 16 . 8 11 13 16 Storage 6 | . 14 14 1 12 11 5 5 5 5 5 4 . 1 4 4 3 Processor 2 | . . . . . . 5 5 5 5 5 5 . 7 8 8 7 Protection 3 | . . . 10 . . 4 4 3 . . 1 . 7 8 7 5 Energy Gun 1 | . 14 . 1 . . 1 5 . . . . . 1 . . 5 Energy Cannon 9 | . . . 10 12 12 8 5 8 17 23 13 . . 4 1 1 Ballistic Gun 3 | . 14 24 2 . . 5 5 7 . . 3 . . . . 3 Ballistic Cannon 2 | . . . . . . 2 5 5 4 . . . 12 8 9 4 Peak Build Rating 213 | 7 7 10 28 32 39 95 98 103 121 117 128 3 179 163 186 213 Average Rating 72 | 4 7 9 23 31 34 80 97 100 112 117 116 3 148 162 164 195 On Entrance 68 | . 7 7 10 28 32 39 95 98 103 117 117 3 3 160 163 186 Naked Turns 106 | . . . . . . . . . . . 5 28 62 . . 11 Heaviest Build 219 | 13 13 13 219 219 219 143 140 146 173 163 177 . 130 87 127 188 Greatest Support 192 | 32 32 40 40 30 56 48 60 60 60 60 60 3 161 139 184 192 Greatest Overweight (x) 32 | . . . 21 21 21 4 3 2 2 2 8 . 1 . . 32 Average Overweight (x) 3 | . . . 3 7 6 3 2 2 2 2 2 . . . . . Largest Inventory Capacity 35 | 8 8 8 35 35 35 25 25 25 25 25 25 5 10 10 10 15 Average Capacity 20 | 6 8 8 9 35 31 25 25 25 25 25 24 5 6 10 10 14 Most Carried 35 | 3 4 8 21 34 35 25 25 25 25 24 24 5 10 9 10 15 Average Carried 18 | 1 3 7 6 31 29 22 24 24 24 24 22 5 5 9 9 12 Final Capacity 35 | 8 8 8 35 35 25 25 25 25 25 25 5 5 10 10 10 5 Final Carried 34 | 3 4 8 21 34 25 25 24 25 24 24 5 5 9 9 10 4 Class Distribution -------------------- 28% | Commander-Mutant 17% | Subdweller-Mutant 16% | Scavenger-Gunner 15% | Scavenger-Scrapper 7% | Hauler-Mutant 5% | Scavenger-Mutant 4% | Mutant Dominant Class ---------------- Mutant | -10/Materials Scavenger-Mutant | -10/Mines Subdweller-Mutant | -10/Subcaves Hauler-Mutant | -7/Recycling Commander-Mutant | -7/Scraptown Scavenger-Scrapper | -5/Factory Scavenger-Scrapper | -5/Upper Caves Scavenger-Scrapper | -5/Upper Caves Scavenger-Scrapper | -5/Warlord Scavenger-Scrapper | -4/Proximity Caves Scavenger-Scrapper | -4/Factory Mutant | -3/Research Scavenger-Gunner | -3/Testing Scavenger-Gunner | -2/Research Scavenger-Gunner | -2/DSF Scavenger-Gunner | -1/Access Resources | -11 -10 -10 -10 -7 -7 -5 -5 -5 -5 -4 -4 -3 -3 -2 -2 -1 ----------- Run | Yrd Mat Min Sub Rec Scr Fac Upp Upp War Pro Fac Res Tes Res DSF Acc Matter Collected 10031 | 278 . 92 161 20 130 466 417 544 260 . 142 . 3144 . 765 3612 Remotely 4191 | . . . . . . . . . . . 10 . 1921 . 256 2004 Salvage Created 13947 | 115 . 227 907 . . 593 603 1128 198 129 1853 . 1246 . 354 6594 Parts 596 | 6 . 8 57 . . 30 18 33 5 5 83 . 49 . 16 286 Haulers Intercepted 4 | . . . . . . 2 . . . . 1 . . . . 1 Recyclers Shooed 8 | 1 . . . . . . . 1 . . . . 1 . . 5 Parts Field Recycled 23 | . . . . . . . . . . . . . 16 . . 7 Retrieved Matter 321 | . . . . . . . . . . . . . 210 . . 111 Parts Self-Destructed 83 | . . . 16 . . . 36 26 . 5 . . . . . . Prevented 1 | . . . . . . . . 1 . . . . . . . . Kills | -11 -10 -10 -10 -7 -7 -5 -5 -5 -5 -4 -4 -3 -3 -2 -2 -1 ------- Run | Yrd Mat Min Sub Rec Scr Fac Upp Upp War Pro Fac Res Tes Res DSF Acc Combat Hostiles Destroyed 206 | . . 7 15 . . 10 10 14 3 3 25 . 25 . 7 87 Melee 1 | . . . . . . . . . . . . . . . . 1 Guns 68 | . . 7 2 . . 1 5 5 . . 5 . . . . 43 Cannons 113 | . . . 13 . . 3 4 8 2 3 17 . 24 . 7 32 AOE 14 | . . . . . . 5 . . . . 1 . . . . 8 Classes Destroyed 28 | 2 . 4 5 . . 2 2 2 2 . 1 . 3 . 2 3 Worker 25 | . . 1 . . . 3 . . . . 2 . 6 . . 13 Builder 7 | . . . . . . . . . . . 2 . 2 . . 3 Tunneler 2 | 2 . . . . . . . . . . . . . . . . Hauler 4 | . . . . . . 2 . . . . 1 . . . . 1 Recycler 9 | 1 . . . . . . . . . . 2 . 3 . . 3 Mechanic 1 | . . . . . . . . . . . . . . . . 1 Turret 2 | . . . 2 . . . . . . . . . . . . . Watcher 1 | . . . . . . . . . . . . . 1 . . . Swarmer 22 | . . . 1 . . 5 3 2 . 2 9 . . . . . Saboteur 5 | . . . . . . . . . . . . . . . . 5 Grunt 71 | . . 2 . . . 3 4 8 . . 10 . 8 . . 36 Brawler 12 | . . . . . . . 2 . 1 . . . . . . 9 Duelist 5 | . . . . . . . . 1 . . . . 1 . . 3 Protector 4 | . . . . . . . . . . . . . 1 . . 3 Researcher 3 | . . . . . . . . . . . . . 3 . . . Sentry 11 | . . . 1 . . 1 1 3 . 1 1 . . . . 3 Demolisher 2 | . . 2 . . . . . . . . . . . . . . Specialist 3 | . . . . . . . . . . . . . . . 1 2 Hunter 17 | . . . . . . 1 . . . . 2 . 10 . . 4 Programmer 29 | . . . . . . . . . 1 . 2 . 5 . 2 19 Q-Series 2 | . . . . . . . . . . . . . . . . 2 Behemoth 3 | . . . . . . . . 1 . . 1 . . . . 1 Investigator 1 | . . . . . . . . . . . . . . . . 1 Striker 1 | . . . . . . . . . 1 . . . . . . . Cobbler 1 | . . . 1 . . . . . . . . . . . . . Subdweller 13 | . . . 13 . . . . . . . . . . . . . Scrapoid 2 | . . . . . . . 1 1 . . . . . . . . Packrat 1 | . . . . . . . . 1 . . . . . . . . Assembled 3 | . . 3 . . . . . . . . . . . . . . Thug 2 | . . . . . . . . . . . . . . . 2 . Mutant 2 | . . . . . . . . . . . . . . . 2 . Best Kill Streak 19 | 2 . 2 3 . . 8 10 7 1 3 11 . 9 . 4 19 Combat Bots Only 18 | . . 2 2 . . 5 7 7 1 3 8 . 6 . 4 18 Max Kills in Single Turn 8 | 1 . 1 1 . . 8 2 1 1 1 2 . 2 . 1 4 Gunslinging 1 | . . . . . . . . . . . . . . . . 1 Exploded 5 | . . . . . . 5 . . . . 1 . . . . 3 Melee 1 | . . . . . . . . . . . . . . . . 1 Uniques/NPCs Destroyed . | . . . . . . . . . . . . . . . . . Combat | -11 -10 -10 -10 -7 -7 -5 -5 -5 -5 -4 -4 -3 -3 -2 -2 -1 -------- Run | Yrd Mat Min Sub Rec Scr Fac Upp Upp War Pro Fac Res Tes Res DSF Acc Hostile Shots Fired 2487 | . . 60 67 . . 13 60 93 16 23 294 . 584 . 56 1221 Missed 675 | . . 16 18 . . 3 19 23 2 5 107 . 190 . 31 261 Damage Taken 33838 | . . 657 859 . . 224 820 1414 263 398 3600 . 7270 . 647 17686 Core 3417 | . . 117 118 . . 26 136 84 53 38 793 . 416 . 22 1614 Absorbed by Shields 6609 | . . . . . . 33 . . 184 . . . . . . 6392 Reduced by Siege Mode 1155 | . . . . . . . . . . . . . . . . 1155 Regen/Repaired (Parts) 7904 | . . . . . . 8 9 37 257 . 40 . 2567 105 1144 3737 Core Remaining (%) 61 | 100 . . . . 6 . . . . 66 31 . 68 . 98 . Volleys Fired 750 | 8 2 52 132 . . 17 22 48 17 7 75 . 122 . 17 231 Largest 4 | 2 2 2 2 . . 4 4 4 4 4 4 . 4 . 3 4 Hottest 360 | 60 60 60 105 . . 245 204 247 247 310 310 . 311 . 245 360 Shots Fired 1888 | 16 4 83 148 . . 47 74 152 47 20 222 . 315 . 40 720 Gun 758 | 16 4 83 38 . . 14 38 62 . . 72 . 6 . . 425 Cannon 1122 | . . . 110 . . 33 36 90 46 20 150 . 308 . 40 289 Launcher 4 | . . . . . . . . . . . . . . . . 4 Special 4 | . . . . . . . . . 1 . . . 1 . . 2 Kinetic 963 | 8 2 60 17 . . 24 37 88 10 . 51 . 274 . 38 354 Thermal 879 | 8 2 23 131 . . 23 37 64 36 20 160 . 34 . 2 339 Explosive 4 | . . . . . . . . . . . . . . . . 4 Electromagnetic 19 | . . . . . . . . . . . 9 . . . . 10 Entropic 19 | . . . . . . . . . . . 2 . 6 . . 11 Robot Hit Streak 35 | 3 1 7 13 . . 6 6 6 4 4 12 . 14 . 24 35 Robot Miss Streak 7 | 2 1 3 3 . . 2 7 3 5 3 4 . 4 . 2 5 Penetration Max 2 | . . . . . . . 2 1 . . 2 . 1 . 1 2 Secondary Targets 17 | . . 1 . . . . . . . . . . . . . 16 Max Gunslinging Chain 1 | . . 1 . . . . . . . . . . . . . 1 Shots Hit Robots 1147 | 8 2 54 74 . . 19 35 81 19 7 118 . 192 . 30 508 Core Hits 588 | 5 . 27 21 . . 18 25 31 6 4 53 . 69 . 12 317 Critical Kills 21 | . . . . . . 1 1 2 . . 5 . 1 . 1 10 Critical Parts Destroyed 19 | . . . . . . . . 2 . . 2 . 1 . 1 13 Critical Strikes 75 | . . . 1 . . 1 1 5 . . 8 . 18 . 5 36 Burn 2 | . . . . . . . . . . . 1 . . . . 1 Meltdown 8 | . . . . . . 1 1 1 . . 2 . 1 . . 2 Destroy 31 | . . . 1 . . . . 4 . . 5 . . . 2 19 Blast 31 | . . . . . . . . . . . . . 16 . 3 12 Detonate 3 | . . . . . . . . . . . . . 1 . . 2 Melee Attacks . | . . . . . . . . . . . . . . . . . Impact . | . . . . . . . . . . . . . . . . . Slashing . | . . . . . . . . . . . . . . . . . Piercing . | . . . . . . . . . . . . . . . . . Sneak Attacks . | . . . . . . . . . . . . . . . . . Combat Hostiles . | . . . . . . . . . . . . . . . . . Follow-up Attacks . | . . . . . . . . . . . . . . . . . Damage Inflicted 47595 | 77 20 499 2960 . . 1217 1190 2736 629 346 4536 . 8188 . 1273 23924 Guns 16697 | 77 20 499 302 . . 90 660 1209 . . 946 . 173 . . 12721 Cannons 26076 | . . . 2658 . . 451 530 1527 629 270 3444 . 7930 . 1273 7364 Explosions 4523 | . . . . . . 676 . . . . 146 . 55 . . 3646 Melee . | . . . . . . . . . . . . . . . . . Ramming 299 | . . . . . . . . . . 76 . . 30 . . 193 Kinetic 21989 | 22 20 325 138 . . 193 547 1560 245 . 723 . 6838 . 1189 10189 Thermal 22042 | 55 . 174 2822 . . 1024 643 1176 384 270 3565 . 1147 . 84 10698 Explosive 2211 | . . . . . . . . . . . 146 . . . . 2065 Electromagnetic 356 | . . . . . . . . . . . 102 . . . . 254 Impact . | . . . . . . . . . . . . . . . . . Slashing . | . . . . . . . . . . . . . . . . . Piercing . | . . . . . . . . . . . . . . . . . Entropic 698 | . . . . . . . . . . . . . 173 . . 525 Highest Corruption 65 | . . . . . . . . . 1 1 1 . 5 . 3 65 Average Corruption 12 | . . . . . . . . . 1 1 1 . 3 . 1 22 Corruption Purged . | . . . . . . . . . . . . . . . . . Corruption Blocked . | . . . . . . . . . . . . . . . . . Effects 178 | . . . . . . . . . 3 3 4 . 21 . 5 142 Message Errors 38 | . . . . . . . . . 2 3 . . 4 . 1 28 Matter Fused 30 | . . . . . . . . . 1 . . . 2 . 1 26 Heat Flow Errors 20 | . . . . . . . . . . . 2 . 4 . 1 13 Energy Discharges 13 | . . . . . . . . . . . . . . . 2 11 Parts Rejected 6 | . . . . . . . . . . . . . 2 . . 4 Parts Fused 1 | . . . . . . . . . . . . . . . . 1 Data Loss (minor) 10 | . . . . . . . . . . . . . 3 . . 7 Data Loss (major) 5 | . . . . . . . . . . . . . 1 . . 4 Misfires 3 | . . . . . . . . . . . . . 1 . . 2 Alerts 3 | . . . . . . . . . . . . . . . . 3 Misdirections 2 | . . . . . . . . . . . . . . . . 2 Weapon Failures 47 | . . . . . . . . . . . 2 . 4 . . 41 Overload Shots 1 | . . . . . . . . . 1 . . . . . . . Overflow Damage 1057 | . . . 100 . . 29 9 63 . 49 110 . 335 . 89 273 Projectiles 953 | . . . 100 . . . 9 63 . 23 84 . 335 . 89 250 Explosions 78 | . . . . . . 29 . . . . 26 . . . . 23 Melee 26 | . . . . . . . . . . 26 . . . . . . Knockbacks 129 | . . . . . . . 1 3 1 1 . . 82 . 3 38 Impact 2 | . . . . . . . . . . 1 . . 1 . . . Kinetic 120 | . . . . . . . 1 3 1 . . . 75 . 3 37 Secondary 7 | . . . . . . . . . . . . . 6 . . 1 Self-Inflicted Damage 356 | . . . . . . 41 . . . 38 . . . . . 277 Shots 6 | . . . . . . 1 . . . . . . . . . 5 Rammed 1 | . . . . . . . . . . 1 . . . . . . Targets Rammed 13 | . . . . . . . . . . 1 . . 5 . . 7 Kicked 12 | . . . . . . . . . . . . . 5 . . 7 Crushed . | . . . . . . . . . . . . . . . . . Highest Temperature 535 | 40 20 214 14 . . 372 349 441 324 233 212 . 408 . 399 535 Average Temperature 117 | 15 15 101 7 . . 107 165 155 127 117 118 . 104 . 176 115 Received Heat Transfer 4951 | . . 357 261 . . 40 279 531 . 103 477 . 865 . 108 1930 Effects 38 | . . . . . . 6 1 5 . . 2 . 7 . 3 14 Shutdowns 5 | . . . . . . 1 . 1 . . . . . . . 3 Energy Bleed 5 | . . . . . . . 1 1 . . 1 . 2 . . . Interference 17 | . . . . . . 5 . 3 . . 1 . 2 . 3 3 Matter Decay 1 | . . . . . . . . . . . . . . . . 1 Short Circuit 3 | . . . . . . . . . . . . . 2 . . 1 Damage (minor) 3 | . . . . . . . . . . . . . 1 . . 2 Damage (major) 4 | . . . . . . . . . . . . . . . . 4 Siege Activations 2 | . . . . . . . . . . . . . . . . 2 Total Turns 571 | . . . . . . . . . . . . . . . . 571 Longest Duration 455 | . . . . . . . . . . . . . . . . 455 Robots Corrupted . | . . . . . . . . . . . . . . . . . Combat Hostiles . | . . . . . . . . . . . . . . . . . Parts Fried 2 | . . . . . . . . . . . . . 1 . . 1 Impact Corruptions 1 | . . . . . . . . . . 1 . . . . . . Robots Melted 10 | . . . . . . 1 1 1 1 . 2 . 1 . . 3 Combat Hostiles 10 | . . . . . . 1 1 1 1 . 2 . 1 . . 3 Parts Melted 38 | . . . . . . . 2 5 3 1 11 . . . . 16 Heat Transferred 21017 | 125 . 400 348 . . 921 1135 1697 444 298 3801 . 1030 . 74 10744 Parts Sabotaged 1 | . . . . . . . . . . . . . . . . 1 Parts Stolen . | . . . . . . . . . . . . . . . . . Parts Stripped . | . . . . . . . . . . . . . . . . . Power Chain Reactions . | . . . . . . . . . . . . . . . . . Alert | -11 -10 -10 -10 -7 -7 -5 -5 -5 -5 -4 -4 -3 -3 -2 -2 -1 ------- Run | Yrd Mat Min Sub Rec Scr Fac Upp Upp War Pro Fac Res Tes Res DSF Acc Peak Influence 2409 | 15 24 74 . 120 . 930 . . . . 931 304 1400 776 677 2409 Initial 776 | . 9 9 . . . . . . . . 37 304 171 776 585 405 Average 550 | 5 16 15 . 20 . 255 . . . . 452 304 672 776 627 1239 Maximum Alert Level 5 | . . . . . . 3 . . . . 3 1 4 3 2 5 Low Security (%) 41 | 100 100 100 . 100 . 25 . . . . 28 . 7 . . . Level 1 12 | . . . . . . 64 . . . . 14 100 41 . . . Level 2 13 | . . . . . . 8 . . . . 23 . 5 . 100 22 Level 3 11 | . . . . . . 1 . . . . 33 . 22 100 . 19 Level 4 12 | . . . . . . . . . . . . . 23 . . 30 Level 5 2 | . . . . . . . . . . . . . . . . 7 High Security 5 | . . . . . . . . . . . . . . . . 20 Max Security . | . . . . . . . . . . . . . . . . . Sterilizations 1 | . . . . . . . . . . . . . . . 1 . Squads Dispatched 51 | . . . . . . 4 . 1 . . 5 . 11 . 2 28 Investigation 7 | . . . . . . 2 . 1 . . 2 . 1 . . 1 Extermination 8 | . . . . . . . . . . . 1 . 3 . . 4 Reinforcement 15 | . . . . . . 2 . . . . 1 . 6 . 2 4 Assault 20 | . . . . . . . . . . . 1 . 1 . . 18 Garrison 1 | . . . . . . . . . . . . . . . . 1 Intercept . | . . . . . . . . . . . . . . . . . Searches Triggered . | . . . . . . . . . . . . . . . . . Construction Impeded 2 | . . . . . . . . . . . 1 . 1 . . . Haulers Reinforced 3 | . . . . . . 1 . . . . . . 1 . . 1 Active Scanning Responses . | . . . . . . . . . . . . . . . . . Cargo Convoy Interrupts . | . . . . . . . . . . . . . . . . . Stealth | -11 -10 -10 -10 -7 -7 -5 -5 -5 -5 -4 -4 -3 -3 -2 -2 -1 --------- Run | Yrd Mat Min Sub Rec Scr Fac Upp Upp War Pro Fac Res Tes Res DSF Acc Distress Signals 12 | . . 1 . . . 1 . . 1 . 1 . 5 . . 3 Communications Jammed 102 | . . . . . . . . . . . . . 89 . . 13 Distress Signals 102 | . . . . . . . . . . . . . 89 . . 13 Times Spotted 385 | . 1 21 20 1 . 14 18 16 31 7 35 1 54 . 12 154 Peak Tracking Total 26 | . 1 9 3 1 . 5 7 7 10 4 6 1 9 . 5 26 Tactical Retreats 14 | . . 2 1 . . . . . 2 . 1 . 3 . 3 2 Traps | -11 -10 -10 -10 -7 -7 -5 -5 -5 -5 -4 -4 -3 -3 -2 -2 -1 ------- Run | Yrd Mat Min Sub Rec Scr Fac Upp Upp War Pro Fac Res Tes Res DSF Acc Traps Triggered 4 | . . . 1 . . . . . . . . . . . . 3 Indirectly . | . . . . . . . . . . . . . . . . . Trap Hack Attempts . | . . . . . . . . . . . . . . . . . Triggered . | . . . . . . . . . . . . . . . . . Disarmed . | . . . . . . . . . . . . . . . . . Reprogrammed . | . . . . . . . . . . . . . . . . . Reused . | . . . . . . . . . . . . . . . . . Traps Extracted . | . . . . . . . . . . . . . . . . . Installed 1 | . . . . . 1 . . . . . . . . . . . Triggered 23 | . . . . . . . . 2 21 . . . . . . . Most Traps Carried 1 | . . . 1 1 1 . . . . . . . . . . . Machines | -11 -10 -10 -10 -7 -7 -5 -5 -5 -5 -4 -4 -3 -3 -2 -2 -1 ---------- Run | Yrd Mat Min Sub Rec Scr Fac Upp Upp War Pro Fac Res Tes Res DSF Acc Machines Disabled 54 | . . . 1 . . 23 1 1 2 . 4 . 16 . . 6 Max in Single Turn 15 | . . . 1 . . 15 1 1 1 . 2 . 2 . . 1 Garrison Access 2 | . . . . . . . . . . . 1 . . . . 1 Machines Repaired . | . . . . . . . . . . . . . . . . . Machines Dismantled 1 | . . . . . . . . . 1 . . . . . . . Machines Sabotaged . | . . . . . . . . . . . . . . . . . Overloaded Fab Kills . | . . . . . . . . . . . . . . . . . Hacking | -11 -10 -10 -10 -7 -7 -5 -5 -5 -5 -4 -4 -3 -3 -2 -2 -1 --------- Run | Yrd Mat Min Sub Rec Scr Fac Upp Upp War Pro Fac Res Tes Res DSF Acc Machines Accessed 53 | . . . 2 11 4 6 . 2 8 . 2 1 6 1 . 10 Terminals 21 | . . . . 6 . 2 . 1 . . 1 1 4 1 . 5 Fabricators 4 | . . . . . . 2 . . . . . . 2 . . . Repair Stations 2 | . . . . . . 1 . . . . . . . . . 1 Recycling Units 8 | . . . . 5 . 1 . . . . . . . . . 2 Scanalyzers 1 | . . . . . . . . . . . . . . . . 1 Garrison Access 2 | . . . . . . . . . . . 1 . . . . 1 Total Hacks 127 | . . . 4 25 26 12 . 5 22 . 5 1 13 1 . 13 Successful 84 | . . . 4 13 26 7 . 5 22 . . . 5 1 . 1 Failed 43 | . . . . 12 . 5 . . . . 5 1 8 . . 12 Catastrophic 14 | . . . . 4 . 1 . . . . 1 1 2 . . 5 Database Lockouts . | . . . . . . . . . . . . . . . . . Manual 31 | . . . . 17 . 5 . . . . . . 2 . . 7 Terminals 40 | . . . . 14 . 3 . 4 . . 2 1 9 1 . 6 Fabricators 9 | . . . . . . 5 . . . . . . 4 . . . Repair Stations 4 | . . . . . . 2 . . . . . . . . . 2 Recycling Units 16 | . . . . 11 . 2 . . . . . . . . . 3 Scanalyzers 1 | . . . . . . . . . . . . . . . . 1 Garrison Access 4 | . . . . . . . . . . . 3 . . . . 1 Terminal Hacks 61 | . . . 4 . 26 1 . 5 22 . . . 2 1 . . Record 53 | . . . 3 . 25 . . 4 21 . . . . . . . Robot Analysis 1 | . . . . . . . . . . . . . 1 . . . Open Door 3 | . . . . . . . . 1 1 . . . 1 . . . Open DSF 1 | . . . . . . . . . . . . . . 1 . . Unreport Threat 1 | . . . . . . 1 . . . . . . . . . . Derelict Proto ID Bank 2 | . . . 1 . 1 . . . . . . . . . . . Fabricator Hacks 3 | . . . . . . 2 . . . . . . 1 . . . Network Status 1 | . . . . . . 1 . . . . . . . . . . Build 2 | . . . . . . 1 . . . . . . 1 . . . Repair Station Hacks . | . . . . . . . . . . . . . . . . . Recycling Unit Hacks 5 | . . . . 4 . 1 . . . . . . . . . . Report Inventory 5 | . . . . 4 . 1 . . . . . . . . . . Scanalyzer . | . . . . . . . . . . . . . . . . . Garrison Access Hacks . | . . . . . . . . . . . . . . . . . Unauthorized Hacks 15 | . . . . 9 . 3 . . . . . . 2 . . 1 Terminals 6 | . . . . 4 . . . . . . . . 2 . . . Track 1 | . . . . . . . . . . . . . 1 . . . Botnet 2 | . . . . 1 . . . . . . . . 1 . . . Skim 3 | . . . . 3 . . . . . . . . . . . . Fabricators 1 | . . . . . . 1 . . . . . . . . . . Liberate 1 | . . . . . . 1 . . . . . . . . . . Repair Stations 3 | . . . . . . 2 . . . . . . . . . 1 Patch 1 | . . . . . . 1 . . . . . . . . . . Recycling Units 5 | . . . . 5 . . . . . . . . . . . . Tunnel 5 | . . . . 5 . . . . . . . . . . . . Scrapoids 2 | . . . . . . 1 . . . . . . . . . 1 Scanalyzers . | . . . . . . . . . . . . . . . . . Garrison Access . | . . . . . . . . . . . . . . . . . Data Cores Recovered . | . . . . . . . . . . . . . . . . . Used . | . . . . . . . . . . . . . . . . . Hacking Detections 34 | . . . . 9 . 5 . 1 . . 2 1 6 . . 10 Full Trace Events 4 | . . . . 1 . . . 1 . . 2 . . . . . Feedback Events . | . . . . . . . . . . . . . . . . . Feedback Blocked . | . . . . . . . . . . . . . . . . . Robot Schematics Acquired 3 | . . . . . . . . . . . . . 3 . . . Robots Built 2 | . . . . . . . . . . . . . 2 . . . Authchips . | . . . . . . . . . . . . . . . . . Time 40 | . . . . . . . . . . . . . 40 . . . Total Robot Build Rating 2 | . . . . . . . . . . . . . 2 . . . Part Schematics Acquired 8 | . . . . . . . . . . . . . 8 . . . Parts Built 2 | . . . . . . 2 . . . . . . . . . . Authchips . | . . . . . . . . . . . . . . . . . Time 46 | . . . . . . 46 . . . . . . . . . . Total Part Build Rating 18 | . . . . . . 18 . . . . . . . . . . Parts Repaired . | . . . . . . . . . . . . . . . . . Time . | . . . . . . . . . . . . . . . . . Parts Recycled . | . . . . . . . . . . . . . . . . . Recycled Matter . | . . . . . . . . . . . . . . . . . Retrieved Matter . | . . . . . . . . . . . . . . . . . Retrieved Components . | . . . . . . . . . . . . . . . . . Parts Scanalyzed . | . . . . . . . . . . . . . . . . . Part Schematics Acquired . | . . . . . . . . . . . . . . . . . Parts Damaged . | . . . . . . . . . . . . . . . . . Bothacking | -11 -10 -10 -10 -7 -7 -5 -5 -5 -5 -4 -4 -3 -3 -2 -2 -1 ------------ Run | Yrd Mat Min Sub Rec Scr Fac Upp Upp War Pro Fac Res Tes Res DSF Acc Used RIF Installer . | . . . . . . . . . . . . . . . . . Robots Hacked . | . . . . . . . . . . . . . . . . . Non-combat . | . . . . . . . . . . . . . . . . . Combat . | . . . . . . . . . . . . . . . . . Robot Hacks Applied . | . . . . . . . . . . . . . . . . . Relay Couplers Released 3 | . . . . . . . . . . . 1 . . . . 2 Machine Destruction 3 | . . . . . . . . . . . 1 . . . . 2 Fabnet Peak Effective % . | . . . . . . . . . . . . . . . . . Robots Rewired 24 | . . . . 16 . . 2 . 5 . . . 1 . . . Allies Hacked . | . . . . . . . . . . . . . . . . . Hacks Repelled . | . . . . . . . . . . . . . . . . . Allies | -11 -10 -10 -10 -7 -7 -5 -5 -5 -5 -4 -4 -3 -3 -2 -2 -1 -------- Run | Yrd Mat Min Sub Rec Scr Fac Upp Upp War Pro Fac Res Tes Res DSF Acc Total Allies 39 | . . 3 . 16 . 5 2 . 5 . . . 3 . . 5 Largest Group 15 | . . 3 1 13 10 15 6 6 5 . . . 2 . . 5 Highest-Rated Group 457 | . . 40 16 257 216 457 237 237 274 . . . 158 . . 323 Highest-Rated Ally 158 | . . 16 16 40 40 50 49 49 68 . . . 158 . . 67 Total Orders 20 | . . . . 1 1 . . . 1 . . . 17 . . . STAY 1 | . . . . 1 . . . . . . . . . . . . GUARD 1 | . . . . . . . . . 1 . . . . . . . TUNNEL 2 | . . . . . . . . . . . . . 2 . . . EXPLORE 15 | . . . . . . . . . . . . . 15 . . . RETURN 1 | . . . . . 1 . . . . . . . . . . . Ally Attacks 286 | . . 33 . 46 . 64 42 9 26 . . . 18 . . 48 Total Damage 7733 | . . 323 . 958 . 1449 908 184 1097 . . . 1486 . . 1328 Kills 48 | . . 6 . 7 . 13 8 1 2 . . . 8 . . 3 Allies Corrupted 3 | . . . 1 . . . . . 2 . . . . . . . Allies Melted 2 | . . . . . . . . . 2 . . . . . . . Intel | -11 -10 -10 -10 -7 -7 -5 -5 -5 -5 -4 -4 -3 -3 -2 -2 -1 ------- Run | Yrd Mat Min Sub Rec Scr Fac Upp Upp War Pro Fac Res Tes Res DSF Acc Robot Analysis Total 1 | . . . . . . . . . . . . . 1 . . . Derelict Logs Recovered 12 | . . 1 2 . 5 . 2 2 . . . . . . . . Drone Launches 29 | . . . . . 3 . . . . . . . 26 . . . Drone Recoveries 17 | . . . . . 3 . . . . . . . 14 . . . Exploration | -11 -10 -10 -10 -7 -7 -5 -5 -5 -5 -4 -4 -3 -3 -2 -2 -1 ------------- Run | Yrd Mat Min Sub Rec Scr Fac Upp Upp War Pro Fac Res Tes Res DSF Acc Turns Passed 21540 | 95 70 1324 4493 1724 5343 640 537 840 1318 338 468 28 1337 41 409 2535 Spaces Moved 11165 | 64 64 391 2575 695 2384 434 441 747 1014 349 217 56 597 35 108 994 Core 191 | 8 . . . . . . . . . . 13 56 114 . . . Treads 699 | . . 391 176 . 6 . . . . . . . . . . 126 Legs 1476 | . . . . . . . . . . . . . 465 35 108 868 Wheels 8418 | 56 64 . 2399 695 2015 434 441 747 1014 349 204 . . . . . Hover . | . . . . . . . . . . . . . . . . . Flight 381 | . . . . . 363 . . . . . . . 18 . . . Fastest Speed 40 | 50 100 160 110 179 44 100 90 90 90 90 50 50 40 116 115 106 Average Speed 135 | 93 100 160 144 179 186 113 90 90 90 90 94 50 105 116 115 115 Slowest Speed 720 | 100 100 160 395 395 720 160 100 90 90 90 150 50 190 116 116 250 Overloaded Moves . | . . . . . . . . . . . . . . . . . Propulsion Burnouts . | . . . . . . . . . . . . . . . . . Robots Hopped . | . . . . . . . . . . . . . . . . . Cave-ins Triggered . | . . . . . . . . . . . . . . . . . Exploration Rate (%) 51 | 3 18 81 97 96 90 12 67 80 88 67 7 2 80 1 51 30 Regions Visited 16 Branch Regions 9 Pre-discovered Areas 17 | . . 1 1 5 5 . 1 2 2 . . . . . . . Known Exits Taken 7 | . . . . . . 1 1 1 . 1 1 . 1 1 . . Unknown Exits Taken 8 | 1 1 1 1 1 1 . . . 1 . . 1 . . . . Scrap Searched 33 | . . . 14 . 11 . 3 4 . 1 . . . . . . Spaces Dug 40 | . . . 11 . . . . 2 4 4 4 . . . . 15 Terrain Destroyed 549 | . . . 26 . . 66 34 76 15 13 66 . 108 . 11 134 Melee . | . . . . . . . . . . . . . . . . . Projectile 465 | . . . 26 . . 15 33 76 15 13 56 . 106 . 11 114 AOE 75 | . . . . . . 51 . . . . 9 . 2 . . 13 Terrain Rammed . | . . . . . . . . . . . . . . . . . Walls Destroyed . | . . . . . . . . . . . . . . . . . Machines Disabled . | . . . . . . . . . . . . . . . . . Actions | -11 -10 -10 -10 -7 -7 -5 -5 -5 -5 -4 -4 -3 -3 -2 -2 -1 --------- Run | Yrd Mat Min Sub Rec Scr Fac Upp Upp War Pro Fac Res Tes Res DSF Acc Total 16256 | 81 66 1017 3223 1172 3303 560 539 839 1381 357 319 55 1032 35 353 1924 Wait 3235 | . . 565 447 292 794 28 45 18 214 1 4 . 169 . 199 459 Move 11150 | 63 63 390 2574 694 2383 433 440 746 1013 349 216 55 596 34 107 994 Hop . | . . . . . . . . . . . . . . . . . Pick Up 214 | 3 1 5 23 13 74 27 3 7 7 . 6 . 11 . 3 31 Fast Attach 139 | 7 . 2 6 . 6 5 1 4 9 . 9 . 45 1 6 38 Attach 78 | . . 2 1 . 5 16 1 2 3 . 5 . 6 . 1 36 Detach 22 | . . . . . 2 2 . . 1 . 2 . 3 . . 12 Swap 132 | . . 1 5 2 4 7 2 6 6 . 1 . 35 . 13 50 Drop 192 | . . . 22 . 34 25 6 7 18 . 1 . 22 . 7 50 Fire 750 | 8 2 52 132 . . 17 22 48 17 7 75 . 122 . 17 231 Melee . | . . . . . . . . . . . . . . . . . Ram . | . . . . . . . . . . . . . . . . . Kick 12 | . . . . . . . . . . . . . 5 . . 7 Crush . | . . . . . . . . . . . . . . . . . Escape Stasis 16 | . . . . . . . . . . . . . . . . 16 Rewire 291 | . . . . 171 . . 19 1 85 . . . 15 . . . Trap 1 | . . . . . 1 . . . . . . . . . . . Miscellaneous 24 | . . . 13 . . . . . 8 . . . 3 . . . Route ------- -11/Scrapyard -10/Materials -10/Mines (discovered 2 exits: [*Mat] / *Sub) -10/Subcaves (discovered 3 exits: [*Mat x2] / *Rec) -7/Recycling (discovered 2 exits: *Fac / *Scr) -7/Scraptown (discovered 2 exits: *Fac x2) -5/Factory (discovered 5 exits: Fac x3 / *Upp x2) -5/Upper Caves -5/Upper Caves -5/Warlord -4/Proximity Caves -4/Factory (discovered 4 exits: *Res x4) -3/Research (discovered 2 exits: Res / *Tes) -3/Testing -2/Research -2/DSF -1/Access (discovered 1 exit: [*Sur]) History --------- Turn | Location | Event 4 | -11/Scrapyard | Discovered new exit (range 15) 96 | -11/Scrapyard | Entered Materials 149 | -10/Materials | Discovered new exit (range 9) 166 | -10/Materials | Entered Mines 167 | -10/Mines | Assembled infested the area 263 | -10/Mines | Lost 4 parts (1p2n1w) 302 | -10/Mines | Discovered new exit (range 5) 313 | -10/Mines | Assisted by bots powering up and referring to "LRC-V3" 317 | -10/Mines | Build established: Mutant 750 | -10/Mines | Learned location of Storage (-7) 776 | -10/Mines | Build established: Scavenger-Mutant 1467 | -10/Mines | Discovered new exit (range 3) 1490 | -10/Mines | Entered Subcaves 1490 | -10/Subcaves | Accompanied by 1 ally 1536 | -10/Subcaves | Disturbed a concealed Subdweller 1546 | -10/Subcaves | Core integrity fell below 50% 1646 | -10/Subcaves | A swath of the cavern ceiling suddenly collapsed 1853 | -10/Subcaves | Learned Materials garrison access intel 1917 | -10/Subcaves | Build established: Subdweller-Mutant 1938 | -10/Subcaves | Shifting Twisted Machinery released Barrage Gun 1949 | -10/Subcaves | Shifting Twisted Machinery released Sub. Laser 2203 | -10/Subcaves | Visited 4L-MR0's lab 2216 | -10/Subcaves | Found Powered Cannon 2217 | -10/Subcaves | Attached Powered Cannon, gained temporary slot: Power 2318 | -10/Subcaves | Discovered new exit (range 12) 2761 | -10/Subcaves | Shifting Twisted Machinery released Sub. Beam Cannon 2882 | -10/Subcaves | Visited Clippyterm 2886 | -10/Subcaves | Learned Factory fabricator intel 3077 | -10/Subcaves | Learned location of Zion (-6) 3077 | -10/Subcaves | Met a Zionite searching for "candidates" 3509 | -10/Subcaves | Discovered new exit (range 10) 3654 | -10/Subcaves | Discovered new exit (range 11) 3747 | -10/Subcaves | Disturbed a concealed Subdweller 3957 | -10/Subcaves | Shifting Twisted Machinery released Sub. Laser 3960 | -10/Subcaves | Shifting Twisted Machinery released Sub. Monowheel 4337 | -10/Subcaves | Core integrity fell below 20% 4344 | -10/Subcaves | Disturbed a concealed Subdweller 5669 | -10/Subcaves | Build established: Hauler-Mutant 5983 | -10/Subcaves | Entered Recycling 7137 | -7/Recycling | Lost 5 allies 7189 | -7/Recycling | Build established: Commander-Mutant 7419 | -7/Recycling | Discovered new exit (range 12) 7598 | -7/Recycling | Scanned before Scraplab entrance 7625 | -7/Recycling | Entered Scraplab 7641 | -7/Recycling | Discovered new exit (range 4) 7707 | -7/Recycling | Entered Scraptown 7707 | -7/Scraptown | Accompanied by 10 allies 8011 | -7/Scraptown | Visited Fellowship of the Rings 8045 | -7/Scraptown | Visited Bundlers 9024 | -7/Scraptown | Scanned Subdweller tech in exchange for log data 9032 | -7/Scraptown | Learned Factory trap positions 9036 | -7/Scraptown | Learned Factory security intel 9040 | -7/Scraptown | Learned location of 2 exits from Proximity Caves 9048 | -7/Scraptown | Learned location of 1 exit from Research 9095 | -7/Scraptown | Visited Cyclists 9150 | -7/Scraptown | Visited Comm Corps 9294 | -7/Scraptown | Visited Observation Area 9360 | -7/Scraptown | Visited SPCMW 9424 | -7/Scraptown | Visited Supply Room 9489 | -7/Scraptown | Discovered new exit (range 13) 9727 | -7/Scraptown | Visited UFD Registry 9727 | -7/Scraptown | Registered with UFD as "Kineticell" 9774 | -7/Scraptown | Visited DA-N13 Charitable Foundation 9792 | -7/Scraptown | Found DCF Scrap (29 items) 9950 | -7/Scraptown | Visited Chapter 10 10016 | -7/Scraptown | Visited Derelict Rescue Squad 10028 | -7/Scraptown | Found DRS Beacon 10134 | -7/Scraptown | Delivered Scrap Shield to a Scientist 10351 | -7/Scraptown | Visited Scrap Suit Storage 10571 | -7/Scraptown | Visited Abandonware Association 10595 | -7/Scraptown | Learned abandonware demo "HACKBUD.EXE" 10595 | -7/Scraptown | Learned abandonware demo "ERRANTS.EXE" 10653 | -7/Scraptown | Visited Cartography Club 11152 | -7/Scraptown | Discovered new exit (range 16) 11162 | -7/Scraptown | Learned location of Upper Caves (-5) 11162 | -7/Scraptown | Learned location of Armory (-4) 11162 | -7/Scraptown | Learned location of Quarantine (-2) 11162 | -7/Scraptown | Learned 8 Materials zone layouts 11162 | -7/Scraptown | Learned 12 Factory zone layouts 11162 | -7/Scraptown | Learned 20 Factory zone layouts 11162 | -7/Scraptown | Learned 12 Lower Caves zone layouts 11162 | -7/Scraptown | Learned 20 Lower Caves zone layouts 11162 | -7/Scraptown | Learned 24 Upper Caves zone layouts 11162 | -7/Scraptown | Learned 12 Proximity Caves zone layouts 11162 | -7/Scraptown | Learned location of 1 exit from Factory 11162 | -7/Scraptown | Learned location of 2 exits from Lower Caves 11162 | -7/Scraptown | Learned location of 1 exit from Upper Caves 11412 | -7/Scraptown | Found Deep Structural Scanner 11903 | -7/Scraptown | Visited Curators Association 11987 | -7/Scraptown | Visited Science Guys 12033 | -7/Scraptown | Warned about trapping Scraptown 13050 | -7/Scraptown | Entered Factory 13050 | -5/Factory | Accompanied by 10 allies 13050 | -5/Factory | Evolved 10 slots: Power x1, Propulsion x4, Utility x3, Weapon x2 13051 | -5/Factory | Identified exit to Upper Caves 13052 | -5/Factory | Identified exit to Factory 13053 | -5/Factory | Loaded intel: 92 trap records 13055 | -5/Factory | Loaded intel: 6 fabricator locations 13115 | -5/Factory | Scrapoid reinforcements arrived 13217 | -5/Factory | Lost 10 allies 13232 | -5/Factory | Found Scrap Suit 13609 | -5/Factory | Fabricated Enh. Nova Cannon? 13690 | -5/Factory | Entered Upper Caves 13690 | -5/Upper Caves | Accompanied by 5 allies 13691 | -5/Upper Caves | Identified exit to Upper Caves 13692 | -5/Upper Caves | UFD Scientist delivered a prototype 13694 | -5/Upper Caves | Build established: Scavenger-Scrapper 13711 | -5/Upper Caves | Found Prototype Protection 13716 | -5/Upper Caves | Destroyed 7 combat bots 13745 | -5/Upper Caves | Spotted B-75 Beast 13750 | -5/Upper Caves | Allies destroyed B-75 Beast 13795 | -5/Upper Caves | Encountered a Warlord checkpoint 13830 | -5/Upper Caves | Attracted the attention of an 0b10 checkpoint 13973 | -5/Upper Caves | Attracted the attention of an 0b10 outpost 14227 | -5/Upper Caves | Entered another Upper Caves area 14227 | -5/Upper Caves | Accompanied by 6 allies 14228 | -5/Upper Caves | Identified exit to Warlord 14314 | -5/Upper Caves | Found Scrap Suit 14331 | -5/Upper Caves | Found Scrap Suit 14349 | -5/Upper Caves | Lost 4 allies 14434 | -5/Upper Caves | Spotted B-75 Beast 14445 | -5/Upper Caves | Destroyed B-75 Beast 14575 | -5/Upper Caves | Attracted the attention of an 0b10 checkpoint 14827 | -5/Upper Caves | Attracted the attention of an 0b10 base 14888 | -5/Upper Caves | Lost 3 parts (1p2w) 14900 | -5/Upper Caves | Destroyed 7 combat bots 15037 | -5/Upper Caves | Learned Factory trap positions 15067 | -5/Upper Caves | Entered Warlord 15340 | -5/Warlord | Learned Factory terminal intel 15340 | -5/Warlord | Learned Factory fabricator intel 15340 | -5/Warlord | Learned Armory garrison access intel 15340 | -5/Warlord | Learned Research terminal intel 15341 | -5/Warlord | Learned 4 Command zone layouts 15342 | -5/Warlord | Learned location of Testing (-3) 15461 | -5/Warlord | Rebuked by Warlord 15486 | -5/Warlord | Warlord's base attacked by MAIN.C 15489 | -5/Warlord | Found Prototype Device 15489 | -5/Warlord | Identified System Purifier 15498 | -5/Warlord | Found Prototype Reactor 15498 | -5/Warlord | Identified Vortex Chain Reactor 15504 | -5/Warlord | Found Prototype Hackware 15590 | -5/Warlord | Found Prototype Energy Gun 15590 | -5/Warlord | Identified Vortex Rail 15595 | -5/Warlord | Found Vortex Rail 15600 | -5/Warlord | Found Vortex Rail 15602 | -5/Warlord | Found Vortex Rail 15737 | -5/Warlord | P-80 Master assimilated allied Beamer 6a 15795 | -5/Warlord | Lost 3 allies 15808 | -5/Warlord | Spotted Executioner 15812 | -5/Warlord | Warlord forces counterattacked 15830 | -5/Warlord | P-80 Master assimilated allied XE-2J4(Y) 15884 | -5/Warlord | Lost 14 allies 16062 | -5/Warlord | Spotted Striker 16078 | -5/Warlord | Destroyed Striker 16128 | -5/Warlord | Spotted Executioner 16161 | -5/Warlord | Warlord base infiltrated, sounded retreat 16185 | -5/Warlord | Lost 4 allies 16296 | -5/Warlord | Found Prototype Ballistic Cannon 16296 | -5/Warlord | Identified Hvy. Autocannon 16329 | -5/Warlord | Spotted Executioner 16333 | -5/Warlord | Spotted Striker 16335 | -5/Warlord | Found Prototype Processor 16340 | -5/Warlord | Spotted Executioner 16360 | -5/Warlord | Lost 6 allies 16374 | -5/Warlord | Discovered new exit (range 14) 16385 | -5/Warlord | Entered Proximity Caves 16536 | -4/Proximity Caves | Attracted the attention of an 0b10 checkpoint 16723 | -4/Proximity Caves | Entered Factory 16723 | -4/Factory | Evolved 2 slots: Utility x2 16723 | -4/Factory | Identified Enh. Scrap Shield 16724 | -4/Factory | Identified exit to Research 16725 | -4/Factory | Loaded intel: 107 trap records 16726 | -4/Factory | Loaded intel: 26 terminal locations 16727 | -4/Factory | Loaded intel: 5 fabricator locations 16742 | -4/Factory | Spotted B-86 Titan 16762 | -4/Factory | Destroyed B-86 Titan 16882 | -4/Factory | Destroyed 8 combat bots 16992 | -4/Factory | Destroyed 7 combat bots 17175 | -4/Factory | Released all parts (5) 17177 | -4/Factory | Identified Ghost Barrier 17184 | -4/Factory | Core integrity fell below 50% 17191 | -4/Factory | Entered Research 17191 | -3/Research | Evolved 2 slots: Utility x2 17192 | -3/Research | Identified exit to Research 17193 | -3/Research | Loaded intel: 21 terminal locations 17211 | -3/Research | Discovered new exit (range 5) 17219 | -3/Research | Lost 24 parts (2p3n11u7w) 17219 | -3/Research | Entered Testing 17239 | -3/Testing | Spotted PX-4HOP0U9OC5 17256 | -3/Testing | Rewired PX-4HOP0U9OC5 17335 | -3/Testing | Spotted Alpha 7 17352 | -3/Testing | Discovered exit to Research (range 78) 17370 | -3/Testing | Found Prototype Processor 17370 | -3/Testing | Identified Exp. Targeting Computer 17374 | -3/Testing | Found Prototype Device 17374 | -3/Testing | Identified Exp. Transmission Jammer 17393 | -3/Testing | Lost 6 allies 17489 | -3/Testing | Found Prototype Protection 17489 | -3/Testing | Identified SHELL Armor 17493 | -3/Testing | Found Prototype Protection 17493 | -3/Testing | Identified Med. Regenerative Plating 17496 | -3/Testing | Found Prototype Protection 17496 | -3/Testing | Identified Hvy. Regenerative Plating 17499 | -3/Testing | Found Prototype Protection 17499 | -3/Testing | Identified Lgt. Regenerative Plating 17632 | -3/Testing | Found Prototype Device 17632 | -3/Testing | Identified AEGIS Remote Shield 17675 | -3/Testing | Build established: Scavenger-Gunner 17871 | -3/Testing | Fabricated T-07 Excavator (x2) 18258 | -3/Testing | First assault squad dispatched 18359 | -3/Testing | Lost 5 parts (3n2u) 18424 | -3/Testing | Scanned by Researcher 18556 | -3/Testing | Entered Research 18556 | -2/Research | Evolved 2 slots: Power x1, Utility x1 18597 | -2/Research | Identified exit to DSF 18597 | -2/Research | Entered DSF 18663 | -2/DSF | Wild Derelicts raided the area 18706 | -2/DSF | Additional patrols routed to DSF 18813 | -2/DSF | Sterilization system engaged 18833 | -2/DSF | Ambient heat levels rising (+10) 18841 | -2/DSF | Discovered new exit (range 23) 18848 | -2/DSF | Ambient heat levels rising (+10) 18863 | -2/DSF | Ambient heat levels rising (+10) 18878 | -2/DSF | Ambient heat levels rising (+10) 18893 | -2/DSF | Ambient heat levels rising (+10) 18908 | -2/DSF | Ambient heat levels rising (+10) 18923 | -2/DSF | Ambient heat levels rising (+10) 18938 | -2/DSF | Ambient heat levels rising (+10) 18953 | -2/DSF | Ambient heat levels rising (+10) 18968 | -2/DSF | Ambient heat levels rising (+10) 18983 | -2/DSF | Ambient heat levels rising (+10) 18998 | -2/DSF | Ambient heat levels rising (+10) 19006 | -2/DSF | Entered Access 19006 | -1/Access | Evolved 2 slots: Utility x2 19555 | -1/Access | First assault squad dispatched 19647 | -1/Access | System corruption reached 10% 19685 | -1/Access | Lost 7 parts (2p2u3w) 19689 | -1/Access | Destroyed 12 combat bots 20006 | -1/Access | Build established: Scavenger-Tank 20018 | -1/Access | Garrison activated, responded to threat 20092 | -1/Access | Spotted B-99 Colossus 20274 | -1/Access | Spotted B-99 Colossus 20293 | -1/Access | Scrapoids reinforcements arrived? 20434 | -1/Access | Destroyed B-99 Colossus 20441 | -1/Access | Lost 5 allies 20466 | -1/Access | Lost 8 parts (1p1n5u1w) 20467 | -1/Access | Found Hvy. Reactive Plating 20523 | -1/Access | Found Prototype Energy Gun 20523 | -1/Access | Identified Enh. Gamma Rifle 20571 | -1/Access | Found Scrap Suit 20583 | -1/Access | Found Prototype Ballistic Gun 20583 | -1/Access | Identified Multirail 20649 | -1/Access | Found Multirail 20821 | -1/Access | Build established: Scavenger-Gunner 20830 | -1/Access | Door terminal overloaded 20838 | -1/Access | Discovered new exit (range 6) 20869 | -1/Access | System corruption reached 30% 21034 | -1/Access | High security lockdown imminent 21114 | -1/Access | High security lockdown engaged 21368 | -1/Access | Spotted Striker 21380 | -1/Access | Destroyed 18 combat bots 21383 | -1/Access | Spotted Investigator 21392 | -1/Access | Destroyed Investigator 21469 | -1/Access | Lost 17 parts (2p3n6u6w) 21476 | -1/Access | Destroyed 12 combat bots 21508 | -1/Access | Spotted Striker 21508 | -1/Access | Spotted Executioner 21518 | -1/Access | Spotted Investigator 21518 | -1/Access | Spotted Executioner 21518 | -1/Access | Spotted Striker 21523 | -1/Access | Core integrity fell below 50% 21536 | -1/Access | Core integrity fell below 20% 21541 | -1/Access | Destroyed by Executioner with Helical Railgun Last Messages --------------- 21535_ Investigator is analyzing... 21536_ Stasis bubble strength at 164. 21536_ G-73 Enforcer stasis bubble strength at 108. 21537_ Stasis bubble strength at 158. 21537_ G-73 Enforcer stasis bubble strength at 85. 21538_ Slug penetrates L-61 Swordsman. 21538_ Stasis bubble strength at 152. 21538_ G-73 Enforcer stasis bubble strength at 62. 21538_ Held in stasis. 21538_ Investigator is analyzing... 21539_ Stasis bubble strength at 146. 21539_ G-73 Enforcer stasis bubble strength at 39. 21540_ Stasis bubble strength at 140. 21540_ G-73 Enforcer stasis bubble strength at 16. 21541_ The unstable cave ceiling collapses. Map ----- +----------------------------------------------------+ | ????????????????????????????????????????????????? | | ??????????????????????????????????????????????? | | ?????????????????????????????????????????????????? | | ?????????????????????????????????????????????????? | | ?????????????????????????????????????????????????? | | ?????????????????????????????????????????????????? | | ?????????????????????????????????????????????????? | | ?????????????????????????????????????????????????? | | ?????????????????????????????????????????????????? | | ?????????????????????????????????????????????????? | | ?????????????????????????????????????????????????? | | ?????????????????????????????????????????????????? | | ?????????????????????????????????????????????????? | | ??? ????????????????????????????????????????????? | | ??? ??? ?#?????????????????????????????????????? | | ??"""" #?????????????????????????????????????? | | ??"""" #?????????????????????????????????????? | | ?""""" #????????????"""??????????????????????? | | ?""""" #????????????" "??????????????????????? | | """"" #???????#""""" """"#??????????????????? | | ! #???????# #??????????????????? | | #???????# #??????????????????? | | #???????# #??????????????????? | | #???????# %"% #??????????????????? | | #???????# gc< #??????????????????? | | ###############????# igK@*i #??????????????????? | | ##########!= #????# gpKlggg#??????????????????? | | * [ #????# g gggE #??????????????????? | | [[ #???## iE p ##?????????????????? | | ##########|!= #???# / #?????????????????? | | ???????##*=##???## " g ##????????????????? | | ?????##!!#?????#"" =/ #????????????????? | | #????#*!%##????#"" % # #????????????????? | | #?????#**"#????# %% # #????????????????? | | " #?????#!=##????#"" % ##????????????????? | | """ #?????#=!#?????#"" % % %# ??????????????? | | """#?????#! #######"% % ###+?????????????? | | " #?????# = = %%% ?????? | | #?????# = % % ?????? | | #?????####+###"##; # ##+#######??????? | | #??????? ##?# ### ## ## ? ???????????? | | ?????? #??##??###?# #? ? ???????????? | | ####???? #???????????# #?? "????????????? | | ?????? #???????????? ??? ????????????? | | ????# #????????????# ?????????????????? | | ????# ! #?????????????##????????????????? | | ????# """ #???????????????????????????????? | | ????# "" F"" #???????????????????????????????? | | ????# """""" #???????????????????????????????? | | ????# """" #???????????????????????????????? | +----------------------------------------------------+ Best States ------------- Heat Dissipation 193 Coolant Potential 200 Energy Generation 65 Energy Capacity 850 Matter Stores 530 Matter Capacity 550 Sight Range 23 Terrain Scan Density 10 Jamming Range 22 Armor Coverage 3000 Resistance: KI 40 Weapon Cycling 15 Evasion (%) 65 Targeting Accuracy 12 Target Analysis 6 Core Analysis 6 Armor Integrity Analysis 30 Recoil Reduction 6 Matter Filtering 50 Salvage Targeting 4 Offensive Hacking 10 Defensive Hacking 20 Item Schematics ----------------- Exp. Coolant Injector | -3/Testing | Archive Lgt. Neutrino Core | -3/Testing | Archive Adv. Remote Shield | -3/Testing | Archive Hvy. Proton Missile Launcher | -3/Testing | Archive Diametric Drive | -3/Testing | Archive Hvy. Dispersion Rifle | -3/Testing | Archive Imp. KE Penetrator | -3/Testing | Archive Adv. Gravity Neutralizer | -3/Testing | Archive Robot Schematics ------------------ S-43 Plague | -3/Testing | Archive H-77 Assassin | -3/Testing | Archive A-15 Conveyor | -3/Testing | Archive Fabricated ------------ Enh. Nova Cannon | x2 | -5/Factory | Preloaded T-07 Excavator | x2 | -3/Testing | Preloaded Alien Tech Used ----------------- None Achievements -------------- Just Shoot The Terminal Challenges ------------ None Game ------ Seed ZioniteHardlightSystem Manual? 0 Play Time 04:28:41 Cumulative 481.2 hours Start 2024.08.15 @ 17:17:52 End 2024.08.19 @ 19:31:40 Sessions 9 Manual Loads 0 Difficulty Rogue Special Mode None Game No. 182 Rogue 179 Adventurer 3 Explorer 0 Win Type - Total 7 Types 4/1/0/1/0/1/0/0/0 Lore% 71 Gallery% 86 Achievement% 87 Wizard Run 0 Options --------- Layout 1 ASCII 0 Keyboard 0 Movement Numpad Keybinds 0 Fullscreen 2 Font 24/Smallcaps Map View 50x35 Zoom Use 0% Tactical HUD 1 Map Filters NONE Filters NONE Steam 1 RUN: 59d75b7a-751a-4b7e-ac24-8f35b4c33bae